fUSD/lending_fUSD_20260311
["ID","MTS","AMOUNT","RATE_DAILY","PERIOD"]
[408211666,1773246646364,-500.0,0.00020109,2]
[408211668,1773246646382,-1057.0,0.00020117,2]
[408211670,1773246646392,-168.0,0.00020145,2]
[408211672,1773246646402,-500.0,0.00020163,2]
[408211674,1773246646411,-500.0,0.00020163,2]
[408211676,1773246646420,-579.0,0.00020163,2]
[408211678,1773246646429,-542.0,0.00020163,2]
[408211680,1773246646439,-500.0,0.00020163,2]
[408211682,1773246646449,-168.0,0.00020171,2]
[408211684,1773246646458,-200.0,0.000202,2]
[408211686,1773246646467,-1508.30777,0.000202,2]
[408211688,1773246646475,-501.92098985,0.00020203,3]
[408211690,1773246646485,-500.0,0.00020218,2]
[408211692,1773246646494,-510.19591819,0.00020218,2]
[408211694,1773246646503,-579.0,0.00020218,2]
[408211696,1773246646512,-542.0,0.00020218,2]
[408211698,1773246646522,-500.0,0.00020218,2]
[408211700,1773246646531,-166.66,0.00020229,2]
[408211702,1773246646539,-224.0,0.00020254,2]
[408211704,1773246646549,-158.0,0.00020273,2]
[408211706,1773246646558,-579.0,0.00020273,2]
[408211708,1773246646567,-542.0,0.00020273,2]
[408211710,1773246646576,-302.0,0.00020273,2]
[408211712,1773246646587,-2000.0,0.00020277,2]
[408211714,1773246646596,-2368.05,0.00020278,2]
[408211716,1773246646606,-199.87,0.00020278,2]
[408211718,1773246646616,-877.78,0.00020292,2]
[408211720,1773246646625,-2077.23177278,0.00020301,2]
[408211722,1773246646634,-500.0,0.00020327,2]
[408211724,1773246646643,-579.0,0.00020328,2]
[408211726,1773246646652,-542.0,0.00020328,2]
[408211727,1773246646661,-3533.40019557,0.00020334,2]
[408211729,1773246646670,-1000.0,0.00020349,2]
[408211731,1773246646680,-224.0,0.0002037,2]
[408211733,1773246646689,-579.0,0.00020383,2]
[408211735,1773246646698,-542.0,0.00020383,2]
[408211737,1773246646708,-1508.30778,0.000204,2]
[408211739,1773246646717,-200.0,0.00020402,2]
[408211741,1773246646726,-579.0,0.00020437,2]
[408211743,1773246646736,-542.0,0.00020437,2]
[408211745,1773246646746,-350.0,0.00020476,2]
[408211747,1773246646755,-200.0,0.0002049,2]
[408211749,1773246646764,-150.0,0.0002049,2]
[408211751,1773246646773,-150.0,0.0002049,2]
[408211753,1773246646782,-150.425,0.0002049,2]
[408211755,1773246646791,-150.314,0.0002049,2]
[408211756,1773246646800,-150.272,0.0002049,2]
[408211758,1773246646810,-150.0,0.0002049,2]
[408211760,1773246646819,-150.0,0.0002049,2]
[408211762,1773246646828,-151.0,0.0002049,2]
[408211764,1773246646837,-150.615,0.0002049,2]
[408211766,1773246646846,-1280.0,0.0002049,2]
[408211768,1773246646855,-929.065,0.0002049,2]
[408211770,1773246646863,-1213.0,0.0002049,2]
[408211772,1773246646873,-3506.0,0.0002049,2]
[408211774,1773246646882,-5996.0,0.0002049,2]
[408211776,1773246646890,-184.87,0.00020491,2]
[408211777,1773246646899,-579.0,0.00020492,2]
[408211779,1773246646910,-542.0,0.00020492,2]
[408211781,1773246646919,-579.0,0.00020547,2]
[408211783,1773246646928,-542.0,0.00020547,2]
[408211785,1773246646937,-167.759206,0.00020548,2]
[408211787,1773246646946,-384.71475781,0.00020553,2]
[408211789,1773246646954,-410.0,0.00020566,2]
[408211791,1773246646963,-187.11673724,0.0002058,2]
[408211793,1773246646972,-187.11673724,0.0002058,2]
[408211795,1773246646981,-176.98,0.00020588,2]
[408211797,1773246646990,-257.86800333,0.000206,5]
[408211799,1773246646999,-1508.30777,0.000206,2]
[408211801,1773246647007,-579.0,0.00020602,2]
[408211803,1773246647017,-542.0,0.00020602,2]
[408211805,1773246647025,-224.0,0.00020603,2]
[408211806,1773246647034,-200.0,0.00020606,2]
[408211808,1773246647043,-1999.0,0.00020623,2]
[408211810,1773246647052,-224.0,0.00020631,2]
[408211812,1773246647061,-224.0,0.00020632,2]
[408211814,1773246647070,-500.0,0.00020655,2]
[408211816,1773246647079,-1080.19,0.00020656,2]
[408211818,1773246647088,-579.0,0.00020657,2]
[408211820,1773246647102,-542.0,0.00020657,2]
[408211822,1773246647111,-350.0,0.00020682,2]
[408211824,1773246647120,-1100.0,0.000207,3]
[408211826,1773246647130,-579.0,0.00020711,2]
[408211828,1773246647141,-542.0,0.00020711,2]
[408211830,1773246647149,-579.0,0.00020766,2]
[408211832,1773246647158,-542.0,0.00020766,2]
[408211834,1773246647170,-3533.40019557,0.00020769,2]
[408211836,1773246647179,-168.0,0.0002078,2]
[408211838,1773246647188,-1508.30778,0.000208,2]
[408211840,1773246647197,-2077.23177278,0.00020802,2]
[408211842,1773246647207,-200.0,0.00020812,2]
[408211844,1773246647227,-504.0,0.00020818,5]
[408211846,1773246647236,-579.0,0.00020821,2]
[408211848,1773246647245,-542.0,0.00020821,2]
[408211850,1773246647255,-168.0,0.0002083,2]
[408211852,1773246647268,-202.0,0.00020847,2]
[408211854,1773246647286,-1000.0,0.00020861,2]
[408211856,1773246647295,-1000.0,0.00020861,2]
[408211858,1773246647304,-1000.0,0.00020861,2]
[408211860,1773246647313,-579.0,0.00020876,2]
[408211862,1773246647321,-542.0,0.00020876,2]
[408211863,1773246647330,-1000.0,0.00020897,2]
[408211865,1773246647339,-1000.0,0.00020898,2]
[408211867,1773246647348,-579.0,0.0002093,2]
[408211869,1773246647357,-542.0,0.0002093,2]
[408211871,1773246647367,-175.1,0.00020939,2]
[408211873,1773246647377,-150.99,0.00020951,2]
[408211875,1773246647386,-586.18411228,0.00020985,2]
[408211877,1773246647395,-543.0,0.00020985,2]
[408211879,1773246647404,-1508.30777,0.00021,2]
[408211881,1773246647412,-166.66,0.0002103,2]
[408211883,1773246647421,-224.0,0.0002109,2]
[408211885,1773246647431,-1000.0,0.00021171,2]
[408211887,1773246647440,-224.0,0.00021187,2]
[408211889,1773246647449,-168.0,0.00021198,2]
[408211891,1773246647458,-3533.40019557,0.00021205,2]
[408211893,1773246647468,-500.0,0.00021205,2]
[408211895,1773246647477,-388.52,0.00021272,2]
[408211896,1773246647486,-2077.23177278,0.00021303,2]
[408211897,1773246647495,-169.35,0.00021323,2]
[408211898,1773246647504,-170.49,0.00021337,2]
[408211899,1773246647512,-313.06,0.00021388,2]
[408211900,1773246647523,-478.56,0.00021432,2]
[408211901,1773246647532,-1000.0,0.00021445,2]
[408211902,1773246647540,-1867.21,0.000215,2]
[408211903,1773246647549,-12606.94,0.00021595,2]
[408211904,1773246647558,-1025.49,0.00021595,2]
[408211905,1773246647567,-176.98,0.00021617,2]
[408211906,1773246647576,-520.04,0.00021639,2]
[408211907,1773246647585,-3533.40019557,0.0002164,2]
[408211908,1773246647594,-500.0,0.00021673,2]
[408211909,1773246647603,-331.17474243,0.00021699,2]
[408211910,1773246647612,-1644.31,0.000217,2]
[408211911,1773246647621,-41504.8,0.000217,2]
[408211912,1773246647629,-813.388304,0.000217,2]
[408211913,1773246647638,-813.388304,0.000217,2]
[408211914,1773246647647,-813.388304,0.000217,2]
[408211915,1773246647656,-813.388314,0.000217,2]
[408211916,1773246647665,-1000.0,0.00021719,2]
[408211917,1773246647674,-158.53,0.000218,7]
[408211918,1773246647683,-257.501389,0.000218,2]
[408211919,1773246647692,-257.501389,0.000218,2]
[408211920,1773246647701,-257.501389,0.000218,2]
[408211921,1773246647710,-257.501389,0.000218,2]
[408211922,1773246647719,-350.0,0.00021802,2]
[408211923,1773246647729,-2077.23177278,0.00021804,2]
[408211924,1773246647738,-166.66,0.00021832,2]
[408211925,1773246647747,-151.0,0.00021832,3]
[408211926,1773246647756,-500.0,0.00021841,2]
[408211927,1773246647767,-299.0,0.00021862,2]
[408211928,1773246647776,-169.33588616,0.00021898,2]
[408211930,1773246647786,-155.28,0.00021918,2]
[408211932,1773246647795,-5000.0,0.00021918,2]
[408211934,1773246647804,-150.0,0.00021918,2]
[408211936,1773246647813,-1000.0,0.00021993,2]
[408211938,1773246647822,-1827.02,0.00022,7]
[408211940,1773246647832,-151.0,0.00022,2]
[408211942,1773246647843,-151.0,0.00022,2]
[408211944,1773246647852,-151.0,0.00022,2]
[408211946,1773246647861,-151.0,0.00022,2]
[408211948,1773246647870,-151.0,0.00022,2]
[408211950,1773246647880,-151.0,0.00022,2]
[408211952,1773246647889,-783.94226,0.00022,2]
[408211954,1773246647898,-783.94226,0.00022,2]
[408211956,1773246647907,-783.94226,0.00022,2]
[408211958,1773246647916,-783.94226,0.00022,2]
[408211960,1773246647926,-847.0,0.00022019,2]
[408211962,1773246647936,-3533.40019557,0.00022075,2]
[408211964,1773246647945,-151.0,0.0002209,2]
[408211966,1773246647955,-175.1,0.00022171,2]
[408211968,1773246647964,-1000.0,0.00022221,2]
[408211970,1773246647974,-1000.0,0.00022267,2]
[408211972,1773246647984,-157.0,0.0002229,3]
[408211974,1773246647993,-2077.23177278,0.00022306,2]
[408211976,1773246648002,-848.0,0.00022339,2]
[408211978,1773246648011,-153.39431909,0.00022435,2]
[408211980,1773246648020,-500.34412117,0.00022497,2]
[408211982,1773246648029,-3533.40019557,0.0002251,2]
[408211984,1773246648039,-2000.0,0.0002253,2]
[408211986,1773246648048,-1999.0,0.00022541,2]
[408211988,1773246648057,-2039.3042544,0.00022549,2]
[408211990,1773246648066,-151.0,0.00022569,2]
[408211992,1773246648076,-151.0,0.00022569,2]
[408211994,1773246648085,-151.0,0.00022569,2]
[408211996,1773246648098,-151.0,0.00022569,2]
[408211998,1773246648107,-151.0,0.00022569,2]
[408212000,1773246648116,-5906.7131465,0.00022569,2]
[408212002,1773246648125,-2637.707458,0.00022569,2]
[408212004,1773246648135,-23473.083058,0.00022569,2]
[408212006,1773246648144,-16233.3998427,0.00022569,2]
[408212008,1773246648154,-59481.0372764,0.00022569,2]
[408212010,1773246648164,-6065.4412337,0.00022569,2]
[408212012,1773246648174,-169.35,0.00022572,2]
[408212014,1773246648183,-170.49,0.00022578,2]
[408212016,1773246648192,-166.66,0.00022634,2]
[408212018,1773246648202,-176.98,0.00022647,2]
[408212020,1773246648211,-1080.19,0.00022665,2]
[408212022,1773246648221,-504.0,0.00022727,7]
[408212024,1773246648230,-1500.0,0.00022768,2]
[408212026,1773246648240,-620.0,0.00022801,2]
[408212028,1773246648249,-2077.23177278,0.00022807,2]
[408212030,1773246648259,-3533.40019557,0.00022946,2]
[408212032,1773246648268,-3291.57158394,0.00022956,2]
[408212034,1773246648277,-166.68,0.00022993,2]
[408212036,1773246648286,-151.0,0.00023039,7]
[408212038,1773246648295,-154.621444,0.00023042,2]
[408212039,1773246648305,-151.0,0.00023042,2]
[408212041,1773246648314,-151.0,0.00023042,2]
[408212043,1773246648323,-151.0,0.00023042,2]
[408212045,1773246648333,-273.039226,0.00023042,2]
[408212047,1773246648343,-273.039226,0.00023042,2]
[408212049,1773246648352,-273.039226,0.00023042,2]
[408212051,1773246648362,-273.039226,0.00023042,2]
[408212053,1773246648371,-1867.21,0.000231,2]
[408212055,1773246648381,-500.0,0.00023112,2]
[408212057,1773246648390,-150.5810082,0.00023119,2]
[408212059,1773246648399,-455.0302848,0.00023119,2]
[408212061,1773246648408,-500.0,0.00023126,2]
[408212063,1773246648417,-1317.9658503,0.00023143,2]
[408212066,1773246648427,-588.5520875,0.00023143,2]
[408212068,1773246648436,-5237.5527819,0.00023143,2]
[408212070,1773246648445,-3622.1611066,0.00023143,2]
[408212071,1773246648454,-13272.0133732,0.00023143,2]
[408212073,1773246648464,-1353.3828738,0.00023143,2]
[408212076,1773246648473,-9004.95,0.00023207,2]
[408212077,1773246648482,-705.29,0.00023207,2]
[408212080,1773246648492,-3600.0,0.00023279,14]
[408212082,1773246648501,-3600.0,0.00023279,14]
[408212084,1773246648510,-2077.23177278,0.00023308,2]
[408212086,1773246648519,-2000.0,0.00023316,2]
[408212088,1773246648529,-150.13270217,0.00023373,2]
[408212089,1773246648540,-520.04,0.00023399,2]
[408212092,1773246648550,-1644.31,0.000234,7]
[408212093,1773246648559,-41504.8,0.000234,7]
[408212095,1773246648568,-151.0,0.000234,2]
[408212098,1773246648577,-151.0,0.000234,2]
[408212100,1773246648588,-151.0,0.000234,2]
[408212102,1773246648598,-151.0,0.000234,2]
[408212103,1773246648607,-151.0,0.000234,2]
[408212106,1773246648616,-151.0,0.000234,2]
[408212108,1773246648626,-783.94226,0.000234,2]
[408212109,1773246648636,-783.94226,0.000234,2]
[408212111,1773246648646,-783.94226,0.000234,2]
[408212113,1773246648655,-783.94226,0.000234,2]
[408212116,1773246648665,-257.501389,0.000234,2]
[408212117,1773246648674,-257.501389,0.000234,2]
[408212120,1773246648684,-257.501389,0.000234,2]
[408212122,1773246648693,-257.50139,0.000234,2]
[408212123,1773246648703,-2000.0,0.00023463,2]
[408212125,1773246648712,-2000.0,0.00023463,2]
[408212127,1773246648722,-2000.0,0.00023463,2]
[408212129,1773246648731,-2000.0,0.00023463,2]
[408212131,1773246648742,-2000.0,0.00023463,2]
[408212134,1773246648751,-2000.0,0.00023463,2]
[408212135,1773246648761,-2000.0,0.00023463,2]
[408212138,1773246648770,-2000.0,0.00023463,2]
[408212139,1773246648780,-2000.0,0.00023463,2]
[408212142,1773246648789,-2000.0,0.00023463,2]
[408212144,1773246648799,-4273.37725382,0.00023471,2]
[408212146,1773246648808,-3250.0,0.0002348,7]
[408212148,1773246648817,-3250.0,0.0002348,7]
[408212150,1773246648827,-3250.0,0.0002348,7]
[408212152,1773246648836,-3250.0,0.0002348,7]
[408212154,1773246648846,-3250.0,0.0002348,7]
[408212156,1773246648855,-3250.0,0.0002348,7]
[408212158,1773246648864,-150.0,0.0002349,2]
[408212160,1773246648873,-150.0,0.0002349,2]
[408212162,1773246648882,-150.0,0.0002349,2]
[408212164,1773246648892,-150.0,0.0002349,2]
[408212165,1773246648901,-150.0,0.0002349,2]
[408212167,1773246648910,-150.0,0.0002349,2]
[408212169,1773246648919,-150.0,0.0002349,2]
[408212171,1773246648929,-1280.0,0.0002349,2]
[408212173,1773246648938,-922.0,0.0002349,2]
[408212175,1773246648947,-1213.0,0.0002349,2]
[408212177,1773246648957,-3506.0,0.0002349,2]
[408212179,1773246648966,-5996.0,0.0002349,2]
[408212181,1773246648975,-150.0,0.00023514,14]
[408212184,1773246648985,-190.0,0.00023514,14]
[408212185,1773246648994,-3600.0,0.00023514,14]
[408212187,1773246649003,-3600.0,0.00023514,14]
[408212190,1773246649012,-3600.0,0.00023514,14]
[408212192,1773246649022,-3600.0,0.00023514,14]
[408212194,1773246649031,-3600.0,0.00023514,14]
[408212196,1773246649040,-178.0,0.00023514,14]
[408212198,1773246649049,-155.28,0.00023529,2]
[408212200,1773246649058,-320.0,0.00023571,2]
[408212202,1773246649067,-3250.0,0.00023582,7]
[408212204,1773246649075,-3250.0,0.00023582,7]
[408212206,1773246649085,-3250.0,0.00023582,7]
[408212208,1773246649099,-3250.0,0.00023582,7]
[408212210,1773246649109,-3250.0,0.00023582,7]
[408212212,1773246649119,-3250.0,0.00023582,7]
[408212214,1773246649129,-2000.0,0.00023594,2]
[408212216,1773246649138,-2000.0,0.00023594,2]
[408212218,1773246649149,-2000.0,0.00023594,2]
[408212220,1773246649158,-2000.0,0.00023594,2]
[408212222,1773246649169,-2000.0,0.00023594,2]
[408212224,1773246649178,-2000.0,0.00023594,2]
[408212226,1773246649187,-2000.0,0.00023594,2]
[408212228,1773246649196,-2000.0,0.00023594,2]
[408212230,1773246649206,-2000.0,0.00023594,2]
[408212232,1773246649215,-2000.0,0.00023594,2]
[408212234,1773246649225,-388.52,0.00023635,2]
[408212236,1773246649234,-151.0,0.00023665,3]
[408212238,1773246649244,-176.98,0.00023676,2]
[408212240,1773246649256,-278.0,0.00023676,7]
[408212242,1773246649266,-223.0,0.00023676,7]
[408212244,1773246649279,-158.53,0.000237,7]
[408212246,1773246649290,-2000.0,0.000237,2]
[408212248,1773246649299,-151.0,0.00023718,7]
[408212250,1773246649308,-150.0,0.00023728,30]
[408212252,1773246649318,-150.0,0.00023751,14]
[408212254,1773246649327,-182.0,0.00023751,14]
[408212256,1773246649337,-183.0,0.00023751,14]
[408212257,1773246649350,-2077.23177278,0.00023809,2]
[408212260,1773246649359,-218.0,0.00023832,2]
[408212262,1773246649368,-986.80125145,0.00023864,2]
[408212263,1773246649378,-151.0,0.00023915,2]
[408212266,1773246649388,-271.0,0.00023916,7]
[408212267,1773246649398,-3250.0,0.00023916,7]
[408212269,1773246649407,-3250.0,0.00023916,7]
[408212271,1773246649417,-2807.0,0.0002394,3]
[408212273,1773246649427,-848.0,0.0002394,3]
[408212289,1773246649435,-3600.0,0.00023991,14]
[408212292,1773246649580,-3600.0,0.00023991,14]
[408212294,1773246649591,-405.86,0.00024042,2]
[408212296,1773246649600,-169.35,0.00024073,2]
[408212298,1773246649611,-170.49,0.00024099,2]
[408212300,1773246649620,-244.556633,0.00024157,2]
[408212302,1773246649630,-151.0,0.00024157,2]
[408212304,1773246649639,-151.0,0.00024157,2]
[408212306,1773246649649,-151.0,0.00024157,2]
[408212308,1773246649660,-2000.0,0.00024166,2]
[408212310,1773246649670,-2000.0,0.00024166,2]
[408212312,1773246649680,-2000.0,0.00024166,2]
[408212315,1773246649691,-2000.0,0.00024166,2]
[408212317,1773246649700,-2000.0,0.00024166,2]
[408212319,1773246649710,-2000.0,0.00024166,2]
[408212321,1773246649720,-2000.0,0.00024166,2]
[408212322,1773246649730,-2000.0,0.00024166,2]
[408212324,1773246649739,-2000.0,0.00024166,2]
[408212326,1773246649749,-2000.0,0.00024166,2]
[408212328,1773246649759,-3250.0,0.00024231,7]
[408212330,1773246649768,-3250.0,0.00024231,7]
[408212332,1773246649777,-3250.0,0.00024231,7]
[408212335,1773246649786,-3250.0,0.00024231,7]
[408212337,1773246649796,-3250.0,0.00024231,7]
[408212338,1773246649805,-3250.0,0.00024231,7]
[408212340,1773246649814,-150.0,0.00024231,7]
[408212342,1773246649824,-184.0,0.00024231,7]
[408212344,1773246649833,-3600.0,0.00024234,14]
[408212346,1773246649844,-3600.0,0.00024234,14]
[408212348,1773246649853,-3600.0,0.00024234,14]
[408212350,1773246649863,-3600.0,0.00024234,14]
[408212352,1773246649872,-3600.0,0.00024234,14]
[408212355,1773246649885,-3600.0,0.00024234,14]
[408212357,1773246649894,-273.0,0.00024234,14]
[408212358,1773246649904,-187.963813,0.00024234,2]
[408212360,1773246649913,-151.0,0.00024234,2]
[408212362,1773246649922,-151.0,0.00024234,2]
[408212364,1773246649931,-273.039226,0.00024234,2]
[408212366,1773246649940,-273.039226,0.00024234,2]
[408212368,1773246649950,-273.039226,0.00024234,2]
[408212370,1773246649959,-273.039226,0.00024234,2]
[408212372,1773246649969,-161.0,0.0002426,3]
[408212374,1773246649978,-2077.23177278,0.0002431,2]
[408212376,1773246649988,-170.49,0.00024378,2]
[408212378,1773246649998,-150.0,0.0002441,2]
[408212380,1773246650008,-177.0,0.0002441,2]
[408212382,1773246650017,-230.0,0.00024452,7]
[408212384,1773246650026,-151.0,0.00024475,7]
[408212386,1773246650035,-3600.0,0.00024478,14]
[408212388,1773246650044,-188.0,0.00024478,14]
[408212390,1773246650053,-3600.0,0.00024478,14]
[408212392,1773246650063,-3600.0,0.00024478,14]
[408212394,1773246650072,-157.0,0.00024581,3]
[408212396,1773246650082,-504.0,0.00024636,9]
[408212398,1773246650093,-2006.75595099,0.00024657,2]
[408212400,1773246650105,-1000.0,0.00024658,2]
[408212402,1773246650114,-154.238167,0.00024658,2]
[408212404,1773246650123,-150.0,0.00024658,2]
[408212406,1773246650132,-187.0,0.00024698,7]
[408212408,1773246650142,-1867.21,0.000247,2]
[408212410,1773246650151,-176.98,0.00024706,2]
[408212412,1773246650161,-500.0,0.00024725,2]
[408212414,1773246650171,-151.0,0.00024725,2]
[408212416,1773246650181,-222.0,0.00024725,14]
[408212418,1773246650189,-3600.0,0.00024725,14]
[408212420,1773246650198,-3600.0,0.00024725,14]
[408212422,1773246650207,-3600.0,0.00024725,14]
[408212424,1773246650216,-3600.0,0.00024725,14]
[408212426,1773246650225,-3600.0,0.00024725,14]
[408212428,1773246650235,-3600.0,0.00024725,14]
[408212430,1773246650244,-153.0,0.00024725,14]
[408212432,1773246650253,-3600.0,0.00024725,14]
[408212434,1773246650262,-3600.0,0.00024725,14]
[408212436,1773246650271,-3600.0,0.00024725,14]
[408212438,1773246650281,-3600.0,0.00024725,14]
[408212440,1773246650291,-2000.0,0.00024783,2]
[408212442,1773246650300,-350.0,0.00024899,2]
[408212444,1773246650309,-150.0,0.00024899,2]
[408212446,1773246650318,-1080.19,0.00024899,2]
[408212448,1773246650327,-520.04,0.00024899,2]
[408212450,1773246650337,-520.04,0.00024899,2]
[408212452,1773246650346,-520.04,0.00024899,2]
[408212454,1773246650355,-500.0,0.00024899,2]
[408212456,1773246650365,-500.0,0.00024899,2]
[408212458,1773246650374,-151.0,0.000249,2]
[408212460,1773246650384,-151.0,0.000249,2]
[408212462,1773246650393,-151.0,0.000249,2]
[408212464,1773246650401,-200.0,0.000249,90]
[408212466,1773246650411,-200.0,0.000249,90]
[408212468,1773246650420,-200.0,0.000249,90]
[408212470,1773246650429,-200.0,0.000249,90]
[408212472,1773246650438,-200.0,0.000249,90]
[408212474,1773246650447,-200.0,0.000249,90]
[408212476,1773246650456,-200.0,0.000249,90]
[408212478,1773246650465,-200.0,0.000249,90]
[408212480,1773246650474,-200.0,0.000249,90]
[408212482,1773246650483,-200.0,0.000249,90]
[408212484,1773246650492,-200.0,0.000249,90]
[408212485,1773246650501,-200.0,0.000249,90]
[408212487,1773246650510,-200.0,0.000249,90]
[408212489,1773246650519,-200.0,0.000249,90]
[408212491,1773246650528,-200.0,0.000249,90]
[408212493,1773246650537,-200.0,0.000249,90]
[408212495,1773246650546,-200.0,0.000249,90]
[408212497,1773246650555,-200.0,0.000249,90]
[408212499,1773246650565,-200.0,0.000249,90]
[408212501,1773246650576,-207.697716,0.000249,90]
[408212504,1773246650585,-4400.0,0.000249,9]
[408212505,1773246650595,-30500.2648243,0.000249,3]
[408212507,1773246650605,-153.39431909,0.00024928,2]
[408212509,1773246650614,-182.0,0.00024948,7]
[408212512,1773246650624,-200.0,0.00024948,7]
[408212513,1773246650633,-200.0,0.00024948,7]
[408212515,1773246650643,-200.0,0.00024948,7]
[408212518,1773246650654,-317.0,0.00024948,7]
[408212520,1773246650666,-3250.0,0.00024948,7]
[408212522,1773246650675,-3250.0,0.00024948,7]
[408212523,1773246650684,-3250.0,0.00024948,7]
[408212524,1773246650694,-3250.0,0.00024948,7]
[408212525,1773246650704,-3250.0,0.00024948,7]
[408212526,1773246650713,-3250.0,0.00024948,7]
[408212527,1773246650722,-167.685632,0.00024975,2]
[408212528,1773246650732,-151.0,0.00024975,2]
[408212529,1773246650742,-273.039226,0.00024975,2]
[408212530,1773246650751,-273.039226,0.00024975,2]
[408212531,1773246650762,-273.039226,0.00024975,2]
[408212532,1773246650772,-273.039233,0.00024975,2]
[408212533,1773246650781,-3600.0,0.00024975,14]
[408212534,1773246650791,-3600.0,0.00024975,14]
[408212535,1773246650802,-150.0,0.00024975,14]
[408212536,1773246650812,-150.0,0.00024975,14]
[408212537,1773246650821,-150.0,0.00024975,14]
[408212538,1773246650830,-150.0,0.00024975,14]
[408212539,1773246650841,-150.0,0.00024975,14]
[408212540,1773246650850,-172.95802059,0.00025,3]
[408212542,1773246650859,-3050.0,0.00025047,7]
[408212543,1773246650869,-3050.0,0.00025047,7]
[408212545,1773246650879,-3050.0,0.00025047,7]
[408212547,1773246650888,-3050.0,0.00025047,7]
[408212549,1773246650897,-3050.0,0.00025047,7]
[408212551,1773246650906,-2980.0,0.00025047,7]
[408212553,1773246650915,-161.0,0.00025081,3]
[408212555,1773246650924,-155.28,0.00025141,2]
[408212557,1773246650934,-500.0,0.00025199,2]
[408212559,1773246650943,-41504.8,0.000252,7]
[408212561,1773246650952,-506.32926117,0.00025227,2]
[408212563,1773246650962,-1644.31,0.000253,7]
[408212565,1773246650971,-520.04,0.00025384,2]
[408212567,1773246650981,-194.0,0.00025401,3]
[408212569,1773246650991,-151.0,0.00025497,3]
[408212571,1773246650999,-3200.0,0.00025641,7]
[408212573,1773246651008,-3200.0,0.00025641,7]
[408212575,1773246651018,-3200.0,0.00025641,7]
[408212577,1773246651027,-3200.0,0.00025641,7]
[408212579,1773246651037,-3200.0,0.00025641,7]
[408212581,1773246651046,-3080.0,0.00025641,7]
[408212583,1773246651055,-176.98,0.00025735,2]
[408212585,1773246651064,-250.0,0.00025769,120]
[408212587,1773246651073,-365.0,0.00025769,120]
[408212588,1773246651083,-163.0,0.00025769,120]
[408212590,1773246651094,-215.0,0.00025769,120]
[408212592,1773246651105,-240.0,0.00025769,120]
[408212594,1773246651114,-290.0,0.00025769,120]
[408212596,1773246651123,-190.0,0.00025769,120]
[408212598,1773246651132,-172.95802059,0.000258,3]
[408212600,1773246651142,-620.0,0.00025801,2]
[408212602,1773246651151,-4110.928018,0.0002583,30]
[408212604,1773246651160,-150.0,0.0002589,2]
[408212606,1773246651170,-158.53,0.000259,7]
[408212608,1773246651179,-388.52,0.00025999,120]
[408212610,1773246651188,-3291.57158394,0.00026012,2]
[408212612,1773246651197,-1896.37,0.00026271,2]
[408212614,1773246651206,-1280.0,0.0002649,2]
[408212616,1773246651216,-922.0,0.0002649,2]
[408212618,1773246651225,-1213.0,0.0002649,2]
[408212620,1773246651234,-3506.0,0.0002649,2]